{"text_format":"1","workbook":"xlsx","n_sheets":3,"sheets":["Blad1","Blad2","Blad3"],"not_rendered":{"charts":0,"images":0,"macros":1,"external_links":0,"defined_names":1,"comments":0,"pivot_tables":0},"unopened":[],"bounds":{"document_bytes":16777216,"sheet_cells":100000,"rows_first":2000,"rows_last":500,"rows_between":2000,"halvings":0,"cell_chars":16384,"cell_head_chars":4096},"cells_cut":0,"cells_raw":0,"read":"whole","date_system":"1900"}

{"sheet":"Blad1","index":0,"n_rows":33,"n_cols":5,"rows_kept":33,"cut":false,"hidden":false,"merged":[]}
["rang","land","goals"]
[{"$f":"RANK(C2,C$2:C$33)","v":4},"Brazilië",11,"topscorer:",{"$f":"VLOOKUP(1,A2:B33,2,)","v":"Nederland"}]
[{"$f":"RANK(C3,C$2:C$33)","v":8},"Kroatië",6,null,"Top doelpuntenmakers zijn : Nederland, Duitsland "]
[11,"Mexico",5]
[11,"Nederland",5]
[14,"Spanje",4]
[1,"Nederland",15]
[8,"Chili",6]
[22,"Australië",3]
[3,"Colombia",12]
[22,"Griekenland",3]
[14,"Ivoorkust",4]
[27,"Japan",2]
[14,"Uruguay",4]
[11,"Costa Rica",5]
[27,"Engeland",2]
[27,"Italië",2]
[6,"Zwitserland",7]
[22,"Ecuador",3]
[5,"Frankrijk",10]
[31,"Honduras",1]
[6,"Argentinië",7]
[14,"Bosnië-Herzegovina",4]
[31,"Iran",1]
[22,"Nigeria",3]
[1,"Duitsland",15]
[14,"Portugal",4]
[14,"Ghana",4]
[14,"Verenigde Staten",4]
[14,"België",4]
[8,"Algerije",6]
[27,"Rusland",2]
[22,"Zuid-Korea",3]

{"sheet":"Blad2","index":1,"n_rows":0,"n_cols":0,"rows_kept":0,"cut":false,"hidden":false,"merged":[]}

{"sheet":"Blad3","index":2,"n_rows":0,"n_cols":0,"rows_kept":0,"cut":false,"hidden":false,"merged":[]}